{"text_format":"1","workbook":"xlsx","n_sheets":6,"sheets":["Index","Productivity-Desktop","Research-Cluster-Desktop","Travel-Mobile","Productivity-Mobile","Standard-Software-Requirements"],"not_rendered":{"charts":0,"images":0,"macros":1,"external_links":0,"defined_names":15,"comments":0,"pivot_tables":0},"unopened":[],"bounds":{"document_bytes":16777216,"sheet_cells":100000,"rows_first":2000,"rows_last":500,"rows_between":2000,"halvings":0,"cell_chars":16384,"cell_head_chars":4096},"cells_cut":0,"cells_raw":0,"read":"whole","date_system":"1900"}

{"sheet":"Index","index":0,"n_rows":6,"n_cols":1,"rows_kept":6,"cut":false,"hidden":false,"merged":[]}
["INDEX"]
["Productivity-Desktop"]
["Research-Cluster-Desktop"]
["Travel-Mobile"]
["Productivity-Mobile"]
["Standard-Software-Requirements"]

{"sheet":"Productivity-Desktop","index":1,"n_rows":22,"n_cols":8,"rows_kept":22,"cut":false,"hidden":false,"merged":[[20,1,20,2],[21,1,21,2],[1,1,1,4],[3,1,15,1],[16,1,16,2],[17,1,17,2],[18,1,18,2],[19,1,19,2]]}
["Back to Index",null,null,null,null,null,null,"Back to Index"]
[null,"Standard Configurations for Productivity Desktop Systems"]
[null,null,null,"Windows","Macintosh"]
[null,"Hardware","Processor","Intel Core i5 or i7\n(Haswell)","Intel Core i5 or i7\n(Haswell)"]
[null,null,"Memory",{"$f":"'Standard-Software-Requirements'!D5","v":"8GB"},{"$f":"'Standard-Software-Requirements'!F5","v":"8GB"}]
[null,null,"Storage",{"$f":"'Standard-Software-Requirements'!D6","v":"256GB SSD/ 500GB SATA (7200 RPM)"},{"$f":"'Standard-Software-Requirements'!F6","v":"256GB SSD/1 TB SATA (7200 RPM)"}]
[null,null,"Display",{"$f":"'Standard-Software-Requirements'!D7","v":"23'' UXGA/HD"},{"$f":"'Standard-Software-Requirements'!F7","v":"27\" UXGA/HD"}]
[null,null,"Graphics",{"$f":"'Standard-Software-Requirements'!D8","v":"Intel HD 4600 / 512 MB GDDR\nDirect X 11/OpenGL 4.0\nDVI-D/DisplayPort/HDMI/\nDE-15"},{"$f":"'Standard-Software-Requirements'!F8","v":"Intel HD 4600/512MB GDDR"}]
[null,null,"Connectivity",{"$f":"'Standard-Software-Requirements'!D9","v":"1000BASE-TX, 802.11N, Bluetooth 3.1"},{"$f":"'Standard-Software-Requirements'!F9","v":"1000BASE-TX, 802.11N, Bluetooth 3.1"}]
[null,null,"Audio",{"$f":"'Standard-Software-Requirements'!D10","v":"HD Audio"},{"$f":"'Standard-Software-Requirements'!F10","v":"HD Audio"}]
[null,null,"Multimedia",{"$f":"'Standard-Software-Requirements'!D11","v":"8xDVD+/-RW"},{"$f":"'Standard-Software-Requirements'!F11","v":"N/A"}]
[null,null,"Input Devices",{"$f":"'Standard-Software-Requirements'!D12","v":"USB 2.0/2.4GHz/Bluetooth capable keyboard and mouse , HD Camera w/ Mic"},{"$f":"'Standard-Software-Requirements'!F12","v":"USB 2.0/Bluetooth capable keyboard and mouse , HD Camera w/ Mic"}]
[null,null,"Bus-Types and Slots",{"$f":"'Standard-Software-Requirements'!D13","v":"PCI Express 2.0/3.0, SATA 3.0, USB 2.0/3.0"},{"$f":"'Standard-Software-Requirements'!F13","v":"PCI Express 2.0/3.0, SATA 3.0, USB 2.0/3.0, Thunderbolt"}]
[null,null,"External Interfaces",{"$f":"'Standard-Software-Requirements'!D14","v":"USB 2.0/3.0, 1x9 Pin Serial,1xRJ45, 1xLine-Out and 1xLine-in For Microphone,1xHeadphone Connector,"},{"$f":"'Standard-Software-Requirements'!F14","v":"Thunderbolt 1.0, USB 3.0, FireWire 800, Audio-In, Audio-Out"}]
[null,null,"Docking",{"$f":"'Standard-Software-Requirements'!D15","v":"DVI-D, HDMI, VGA, USB, eSATA, RJ45, Audio and Mic, External AC Adapter"},{"$f":"'Standard-Software-Requirements'!F15","v":"Thunderbolt Display"}]
[null,null,"Accessories",{"$f":"'Standard-Software-Requirements'!D16","v":"External Speaker(s), SDHC Card Reader"},{"$f":"'Standard-Software-Requirements'!F16","v":"External Speaker(s), SDHC Card Reader"}]
[null,"OS",null,{"$f":"'Standard-Software-Requirements'!$D$3","v":"Windows 7 Enterprise 64-bit"},"Mac OS 10.8"]
[null,"Manufacturer",null,"Dell","Apple"]
[null,"Model",null,"Optiplex","iMac 27in"]
[null,"Type",null,9020,"3.2 GHz Quad-Core Intel Core i5"]
[null,"Warranty/Lifecycle",null,"4 Year Basic Hardware/4 Year NBD Onsite Service","3 Year AppleCare"]
[null,"Price",null,"$1245.00 (Based on purchase of system with 500GB SATA drive during March 2012)","$1970.00 (Based on purchase of 1TB Fusion Drive during October 2013)"]

{"sheet":"Research-Cluster-Desktop","index":2,"n_rows":22,"n_cols":8,"rows_kept":22,"cut":false,"hidden":false,"merged":[[20,1,20,2],[21,1,21,2],[1,1,1,5],[3,1,15,1],[16,1,16,2],[17,1,17,2],[18,1,18,2],[19,1,19,2]]}
["Back to Index",null,null,null,null,null,null,"Back to Index"]
[null,"Standard Configurations for Research Desktop Systems"]
[null,null,null,"Windows","Macintosh","Linux"]
[null,"Hardware","Processor","Intel Core i5 or i7\n(Haswell)","Intel Core i5 or i7\n(Haswell)","Intel Core i5 or i7\n(Haswell)"]
[null,null,"Memory","16GB","16GB","16GB"]
[null,null,"Storage",{"$f":"'Standard-Software-Requirements'!J6","v":"1TB SATA (7200 RPM)"},{"$f":"'Standard-Software-Requirements'!K6","v":"1TB SATA (7200 RPM)"},"1TB SATA (7200 RPM)"]
[null,null,"Display",{"$f":"'Standard-Software-Requirements'!J7","v":"24\" UXGA/HD"},"27\" UXGA/HD","24\" UXGA/HD"]
[null,null,"Graphics",{"$f":"'Standard-Software-Requirements'!J8","v":"1GB GDDR Direct X11/OpenGL 4.0"},"2GB GDDR","1GB GDDR Direct X11/OpenGL 4.0"]
[null,null,"Connectivity",{"$f":"'Standard-Software-Requirements'!J9","v":"1000BASE-TX or 802.11N capable"},"1000BASETX or 802.11N","1000BASE-TX or 802.11N capable"]
[null,null,"Audio",{"$f":"'Standard-Software-Requirements'!J10","v":"HD Audio"},"HD Audio","HD Audio"]
[null,null,"Multimedia",{"$f":"'Standard-Software-Requirements'!J11","v":"16xDVD+/-RW"},"8xDVD+/-RW","16xDVD+/-RW"]
[null,null,"Input Devices",{"$f":"'Standard-Software-Requirements'!J12","v":"USB 2.0 capable keyboard and mouse"},{"$f":"'Standard-Software-Requirements'!K12","v":"USB 2.0 capable keyboard and mouse"},"USB 2.0 capable keyboard and mouse"]
[null,null,"Bus-Types and Slots",{"$f":"'Standard-Software-Requirements'!J13","v":"PCI Express 2.0/3.0, SATA 3.0, USB 2.0/3.0"},"N/A","PCI Express 2.0/3.0, SATA 3.0, USB 2.0/3.0"]
[null,null,"External Interfaces",{"$f":"'Standard-Software-Requirements'!J14","v":"10xUSB 2.0, 1x9 Pin Serial,1xRJ45, 1xLine-Out and 1xLine-in For Microphone,1xHeadphone Connector"},"Thunderbolt 1.0/USB 2.0/FireWire 800, Audio-In, Audio-Out","10xUSB 2.0, 1x9 Pin Serial,1xRJ45, 1xLine-Out and 1xLine-in For Microphone,1xHeadphone Connector"]
[null,null,"Docking",{"$f":"'Standard-Software-Requirements'!J15","v":"DVI-D, HDMI, VGA, USB, eSATA, RJ45, Audio and Mic, External AC Adapter"},"N/A","DVI-D, HDMI, VGA, USB, eSATA, RJ45, Audio and Mic, External AC Adapter"]
[null,null,"Accessories",{"$f":"'Standard-Software-Requirements'!J16","v":"External Speaker(s)"},"External Speaker(s)","External Speaker(s)"]
[null,"OS",null,{"$f":"'Standard-Software-Requirements'!$D$3","v":"Windows 7 Enterprise 64-bit"},"Mac OS 10.8","RedHat Enterprise Linux 6.4"]
[null,"Manufacturer",null,"Dell","Apple","Dell"]
[null,"Model",null,"Precision","iMac 27in","Precision"]
[null,"Type",null,"T1700","3.4 GHz Quad-Core Intel Core i5","T1700"]
[null,"Warranty/Lifecycle",null,"4 Year Basic Hardware/4 Year NBD Onsite Service","3 Year AppleCare","4 Year Basic Hardware/4 Year NBD Onsite Service"]
[null,"Price",null,1750,2568,1750]

{"sheet":"Travel-Mobile","index":3,"n_rows":22,"n_cols":8,"rows_kept":22,"cut":false,"hidden":false,"merged":[[20,1,20,2],[21,1,21,2],[1,1,1,4],[3,1,15,1],[16,1,16,2],[17,1,17,2],[18,1,18,2],[19,1,19,2]]}
["Back to Index",null,null,null,null,null,null,"Back to Index"]
[null,"Standard Configurations for Travel Mobile Systems"]
[null,null,null,"Windows","Macintosh"]
[null,"Hardware","Processor","Intel Core i5 or i7\n(Haswell)","Intel Core i5 or i7\n(Haswell)"]
[null,null,"Memory","8GB","8GB"]
[null,null,"Storage","256GB SATA 3 SSD","256GB SATA 3 SSD"]
[null,null,"Display","14.0\" 1600x900","13.3\" 1440x900"]
[null,null,"Graphics","Intel HD 4000 (Shared Memory)","Intel HD 5000 (Shared Memory)"]
[null,null,"Connectivity","1000BASE-TX,802.11N, Bluetooth 4.0","1000BASE-TX  (External USB adapter required), 802.11AC, Bluetooth 4.0"]
[null,null,"Audio","HD Audio","HD Audio"]
[null,null,"Multimedia","webcam, microphone","FaceTime camera, internal microphone"]
[null,null,"Input Devices","keyboard,mouse,\ntouchpad","keyboard,touchpad"]
[null,null,"Bus-Types and Slots","PCI Express 3.0, SATA 3.0, USB 2.0/3.0,SD memory-card","PCI Express 3.0, SATA 3.0, USB 2.0/3.0,SD memory-card"]
[null,null,"External Interfaces","mini HDMI, mini DisplayPort, VGA, USB 2.0/3.0, RJ45, Audio and Mic, External AC Adapter","USB 2.0/3.0, VGA, Thunderbolt, SD Card Slot"]
[null,null,"Docking","DVI-D, HDMI, VGA, USB 2.0/3.0, RJ45, Audio and Mic, External AC Adapter","Thunderbolt Display"]
[null,null,"Accessories","Carry bag, mini DP-VGA Adapter, mini HDMI-VGA Adapter","Ethernet Adapter, Mini DP-VGA Adapter, Apple MagSafe Airline Adapter"]
[null,"OS",null,"Windows 7 Enterprise \n64-bit","Mac OS 10.8"]
[null,"Manufacturer",null,"Lenovo","Apple"]
[null,"Model",null,"X1","Macbook"]
[null,"Type",null,"Carbon","13\" Air"]
[null,"Warranty/Lifecycle",null,"3 Year Basic/NBD/Accidental Damage","3 Year AppleCare"]
[null,"Price",null,1900,1900]

{"sheet":"Productivity-Mobile","index":4,"n_rows":22,"n_cols":8,"rows_kept":22,"cut":false,"hidden":false,"merged":[[20,1,20,2],[21,1,21,2],[1,1,1,4],[3,1,15,1],[16,1,16,2],[17,1,17,2],[18,1,18,2],[19,1,19,2]]}
["Back to Index",null,null,null,null,null,null,"Back to Index"]
[null,"Standard Configurations for Productivity Mobile Systems"]
[null,null,null,"Windows","Macintosh"]
[null,"Hardware","Processor","Intel Core i5 or i7\n(Haswell)","Intel Core i5 or i7\n(Haswell)"]
[null,null,"Memory","8GB","8GB"]
[null,null,"Storage","256GB SATA 3 SSD","512GB SATA 3 SSD"]
[null,null,"Display","14.0\" 1600x900","13.3\" 1440x900"]
[null,null,"Graphics","Intel HD 4000 (Shared Memory)","Intel HD 5000 (Shared Memory)"]
[null,null,"Connectivity","1000BASE-TX,802.11N, Bluetooth 4.0","1000BASE-TX  (External USB adapter required), 802.11AC, Bluetooth 4.0"]
[null,null,"Audio","HD Audio","HD Audio"]
[null,null,"Multimedia","webcam, microphone","FaceTime camera, internal microphone"]
[null,null,"Input Devices","keyboard,mouse,\ntouchpad","keyboard,touchpad"]
[null,null,"Bus-Types and Slots","PCI Express 3.0, SATA 3.0, USB 2.0/3.0,SD memory-card","PCI Express 3.0, SATA 3.0, USB 2.0/3.0,SD memory-card"]
[null,null,"External Interfaces","mini HDMI, mini DisplayPort, VGA, USB 2.0/3.0, RJ45, Audio and Mic, External AC Adapter","USB 2.0/3.0, VGA, Thunderbolt, SD Card Slot"]
[null,null,"Docking","DVI-D, HDMI, VGA, USB 2.0/3.0, RJ45, Audio and Mic, External AC Adapter","Thunderbolt Display"]
[null,null,"Accessories","Carry bag, mini DP-VGA Adapter, mini HDMI-VGA Adapter","Ethernet Adapter, Mini DP-VGA Adapter, Apple MagSafe Airline Adapter"]
[null,"OS",null,"Windows 7 Enterprise \n64-bit","Mac OS 10.8"]
[null,"Manufacturer",null,"Dell","Apple"]
[null,"Model",null,"Latitude","Macbook Pro"]
[null,"Type",null,"E7440","13\""]
[null,"Warranty/Lifecycle",null,"3 Year Basic/NBD/Accidental Damage","3 Year AppleCare"]
[null,"Price",null,1800,2400]

{"sheet":"Standard-Software-Requirements","index":5,"n_rows":17,"n_cols":11,"rows_kept":17,"cut":false,"hidden":false,"merged":[[16,1,16,2],[1,7,1,10],[1,1,1,6],[3,1,15,1]]}
["Back to Index",null,null,null,null,null,null,"Back to Index","Back to Index"]
[null,"Standard Software Requirements"]
[null,null,null,"Windows 7 Enterprise 64-bit","Windwows 8.1 Enterprise 64-bit","Apple OS X Mountain Lion","RedHat Enterprise Linux 6.4","Microsoft Office 2010 Pro Plus","Microsoft Office 2011 for Mac","MatLab R2013b 64-bit","Solidworks 2013-2014 64-bit"]
[null,"Hardware","Processor","Intel Core i5 or i7\n(Haswell)","Intel Core i5 or i7\n(Haswell)","Intel Core i5 or i7\n(Haswell)","Intel Core i5 or i7\n(Haswell)","Intel Core i5 or i7\n(Haswell)","Intel Core i5 or i7\n(Haswell)","Intel Core i5 or i7\n(Haswell)","Intel Core i5 or i7\n(Haswell)"]
[null,null,"Memory","8GB","8GB","8GB","8GB","8GB",{"$f":"F5","v":"8GB"},"8GB",{"$f":"J5","v":"8GB"}]
[null,null,"Storage","256GB SSD/ 500GB SATA (7200 RPM)","256GB SSD/ 500GB SATA (7200 RPM)","256GB SSD/1 TB SATA (7200 RPM)","256GB SSD/500GB SATA (7200 RPM)","256GB SSD/ 500GB SATA (7200 RPM)","256GB SSD/1 TB SATA (7200 RPM)","1TB SATA (7200 RPM)","1TB SATA (7200 RPM)"]
[null,null,"Display","23'' UXGA/HD","23'' UXGA/HD","27\" UXGA/HD","23\" UXGA/HD","23'' UXGA/HD","27\" UXGA/HD","24\" UXGA/HD","24\" UXGA/HD"]
[null,null,"Graphics","Intel HD 4600 / 512 MB GDDR\nDirect X 11/OpenGL 4.0\nDVI-D/DisplayPort/HDMI/\nDE-15","Intel HD 4600 / 512 MB GDDR\nDirect X 11/OpenGL 4.0\nDVI-D/DisplayPort/HDMI/\nDE-15","Intel HD 4600/512MB GDDR","Intel HD 4600 / 512 MB GDDR\nOpenGL 3.1\nDVI-D/DisplayPort/HDMI\nDE-15","Intel HD 4600 / 512 MB GDDR\nDirect X 11/OpenGL 4.0\nDVI-D/DisplayPort/HDMI/\nDE-15","Intel HD 4600/512MB GDDR","1GB GDDR Direct X11/OpenGL 4.0","1GB GDDR Direct X11/OpenGL 4.0"]
[null,null,"Connectivity","1000BASE-TX, 802.11N, Bluetooth 3.1","1000BASE-TX, 802.11N, Bluetooth 3.1","1000BASE-TX, 802.11N, Bluetooth 3.1","1000BASE-TX, 802.11N, Bluetooth 3.1","1000BASE-TX, 802.11N, Bluetooth 3.1","1000BASE-TX, 802.11N, Bluetooth 3.1","1000BASE-TX or 802.11N capable","1000BASE-TX or 802.11N capable"]
[null,null,"Audio","HD Audio","HD Audio","HD Audio","HD Audio","HD Audio","HD Audio","HD Audio","HD Audio"]
[null,null,"Multimedia","8xDVD+/-RW","8xDVD+/-RW","N/A","8xDVD+/-RW","8xDVD+/-RW","N/A","16xDVD+/-RW","16xDVD+/-RW"]
[null,null,"Input Devices","USB 2.0/2.4GHz/Bluetooth capable keyboard and mouse , HD Camera w/ Mic","USB 2.0/2.4GHz/Bluetooth capable keyboard and mouse , HD Camera w/ Mic","USB 2.0/Bluetooth capable keyboard and mouse , HD Camera w/ Mic","USB 2.0 capable keyboard and mouse ","USB 2.0/2.4GHz/Bluetooth capable keyboard and mouse , HD Camera w/ Mic","USB 2.0/Bluetooth capable keyboard and mouse , HD Camera w/ Mic","USB 2.0 capable keyboard and mouse","USB 2.0 capable keyboard and mouse"]
[null,null,"Bus-Types and Slots","PCI Express 2.0/3.0, SATA 3.0, USB 2.0/3.0","PCI Express 2.0/3.0, SATA 3.0, USB 2.0/3.0","PCI Express 2.0/3.0, SATA 3.0, USB 2.0/3.0, Thunderbolt","PCI Express 2.0/3.0, SATA 3.0, USB 2.0/3.0","PCI Express 2.0/3.0, SATA 3.0, USB 2.0/3.0","PCI Express 2.0/3.0, SATA 3.0, USB 2.0/3.0, Thunderbolt","PCI Express 2.0/3.0, SATA 3.0, USB 2.0/3.0","PCI Express 2.0/3.0, SATA 3.0, USB 2.0/3.0"]
[null,null,"External Interfaces","USB 2.0/3.0, 1x9 Pin Serial,1xRJ45, 1xLine-Out and 1xLine-in For Microphone,1xHeadphone Connector,","USB 2.0/3.0, 1x9 Pin Serial,1xRJ45, 1xLine-Out and 1xLine-in For Microphone,1xHeadphone Connector","Thunderbolt 1.0, USB 3.0, FireWire 800, Audio-In, Audio-Out","USB 2.0/3.0, 1x9 Pin Serial,1xRJ45, 1xLine-Out and 1xLine-in For Microphone,1xHeadphone Connector","USB 2.0/3.0, 1x9 Pin Serial,1xRJ45, 1xLine-Out and 1xLine-in For Microphone,1xHeadphone Connector,","Thunderbolt 1.0, USB 3.0, FireWire 800, Audio-In, Audio-Out","10xUSB 2.0, 1x9 Pin Serial,1xRJ45, 1xLine-Out and 1xLine-in For Microphone,1xHeadphone Connector","10xUSB 2.0, 1x9 Pin Serial,1xRJ45, 1xLine-Out and 1xLine-in For Microphone,1xHeadphone Connector"]
[null,null,"Docking","DVI-D, HDMI, VGA, USB, eSATA, RJ45, Audio and Mic, External AC Adapter","DVI-D, HDMI, VGA, USB, eSATA, RJ45, Audio and Mic, External AC Adapter","Thunderbolt Display","DVI-D, HDMI, VGA, USB, eSATA, RJ45, Audio and Mic, External AC Adapter","DVI-D, HDMI, VGA, USB, eSATA, RJ45, Audio and Mic, External AC Adapter","Thunderbolt Display","DVI-D, HDMI, VGA, USB, eSATA, RJ45, Audio and Mic, External AC Adapter","DVI-D, HDMI, VGA, USB, eSATA, RJ45, Audio and Mic, External AC Adapter"]
[null,null,"Accessories","External Speaker(s), SDHC Card Reader","External Speaker(s), SDHC Card Reader","External Speaker(s), SDHC Card Reader","External Speaker(s), SDHC Card Reader","External Speaker(s), SDHC Card Reader","External Speaker(s), SDHC Card Reader","External Speaker(s)","External Speaker(s)"]
[null,"Remaining Mainstream Support",null,"Microsoft Support Lifecycle","Microsoft Support Lifecycle","Dependent on next two OS releases","RedHat Enterprise Linux Lifecyle","Microsoft Support Lifecycle","Dependent on next two OS releases"]